bitfinex/quotes_ETHUSD_20240618
["timestamp","ask_amount","ask_price","bid_price","bid_amount"]
[1718721247327,2.90679,3440.3,3439.1,0.22098336]
[1718721247531,2.90724,3439.7,3439.1,0.22098336]
[1718721247708,2.90713,3439.9,3438.9,0.16583355]
[1718721247902,2.8328,3441.3,3438.9,1.91783355]
[1718721248246,2.90664,3440.4,3439.3,1.0765]
[1718721248434,2.8328,3441.3,3439.3,1.0765]
[1718721248739,2.8328,3442.0,3439.7,4.516]
[1718721249044,0.80061904,3443.4,3439.4,0.292]
[1718721249045,0.893,3442.7,3440.9,1.752]
[1718721249230,2.90463,3442.8,3441.2,4.516]
[1718721249546,2.90463,3442.8,3441.3,3.4516]
[1718721249547,2.90529,3442.0,3441.3,3.4516]
[1718721249756,2.90471,3442.7,3441.4,1.0765]
[1718721249903,2.90362,3444.0,3441.5,0.62801]
[1718721249904,2.9048,3442.6,3441.5,0.62801]
[1718721250106,2.90463,3442.8,3441.5,0.62801]
[1718721250107,2.90488,3442.5,3441.5,0.62801]
[1718721250336,2.90362,3444.0,3441.7,1.752]
[1718721250337,2.8328,3443.8,3441.7,1.752]
[1718721250510,2.90436,3443.1,3441.8,0.05801926]
[1718721250842,2.90401,3443.6,3441.8,0.05801926]
[1718721251142,2.90401,3443.6,3442.0,1.752]
[1718721251337,2.90387,3443.7,3442.1,0.05803166]
[1718721251513,2.9038,3443.8,3442.1,0.05803166]
[1718721251833,2.7696,3444.6,3442.0,4.752]
[1718721251834,2.90428,3443.2,3442.0,4.752]
[1718721252038,2.7696,3444.6,3442.0,4.752]
[1718721252259,2.90411,3443.4,3442.0,4.752]
[1718721252412,2.90394,3443.6,3442.2,1.752]
[1718721252607,2.90404,3443.5,3442.2,1.752]
[1718721252838,0.290404,3443.4,3442.2,1.752]
[1718721253040,2.90419,3443.3,3442.2,4.752]
[1718721253256,2.90379,3443.8,3442.3,3.0]
[1718721253577,2.90322,3444.5,3443.1,1.652]
[1718721253835,2.90236,3445.5,3443.1,4.652]
[1718721253836,2.90302,3444.7,3443.1,4.652]
[1718721254143,2.90332,3444.4,3443.2,2.1651]
[1718721254343,2.90295,3444.8,3443.3,0.86441]
[1718721254643,0.290236,3445.4,3443.3,3.0]
[1718721254644,2.90377,3443.8,3443.3,3.0]
[1718721254880,2.90369,3443.9,3443.3,3.0]
[1718721255097,2.90393,3443.6,3442.7,1.1864]
[1718721255375,2.90369,3443.9,3442.8,0.41864]
[1718721255584,2.90395,3443.6,3442.8,0.41864]
[1718721255732,2.6939,3445.5,3442.7,1.1864]
[1718721255733,2.90251,3445.3,3442.7,1.1864]
[1718721255927,2.90386,3443.7,3442.7,1.1864]
[1718721256570,2.90371,3443.9,3442.7,1.1864]
[1718721256571,2.90369,3443.9,3442.8,1.752]
[1718721256732,2.90338,3444.3,3442.8,1.752]
[1718721256733,2.90377,3443.8,3442.8,0.59384]
[1718721256927,2.90369,3443.9,3442.8,2.34584]
[1718721257166,2.90351,3444.1,3443.0,1.752]
[1718721257479,2.90385,3443.7,3442.9,0.653224]
[1718721257792,2.90364,3444.0,3443.0,0.4839624]
[1718721258079,2.90293,3444.8,3442.8,3.0]
[1718721258080,2.90375,3443.9,3442.8,3.0]
[1718721258228,0.02618893,3443.9,3442.9,1.752]
[1718721258433,2.90302,3444.7,3442.8,3.62304]
[1718721258680,0.02611034,3443.8,3442.7,1.1864]
[1718721258971,2.90387,3443.7,3442.7,1.1864]
[1718721259182,2.90395,3443.6,3442.7,1.1864]
[1718721259330,2.90419,3443.3,3442.7,1.1864]
[1718721259679,0.02611821,3443.2,3442.7,1.1864]
[1718721259905,2.9042,3443.3,3442.7,1.1864]
[1718721260178,0.02604568,3443.1,3442.3,3.0]
[1718721260413,2.90434,3443.2,3442.4,0.0184727]
[1718721260414,0.0260709,3443.2,3442.4,0.0184727]
[1718721260544,2.90482,3442.6,3441.5,1.1864]
[1718721260747,0.02603715,3443.1,3442.0,3.479]
[1718721261057,2.90348,3444.2,3442.1,3.2863]
[1718721261058,2.90417,3443.4,3442.1,3.2863]
[1718721261263,0.02595361,3443.0,3442.1,3.2863]
[1718721261466,3.19748036,3443.0,3442.1,2.9384]
[1718721261678,0.02602663,3442.9,3442.1,1.1864]
[1718721261878,2.90478,3442.6,3442.1,1.1864]
[1718721262245,0.02586725,3442.5,3441.3,1.1864]
[1718721262460,2.93073725,3442.5,3441.4,0.20587508]
[1718721262671,0.02586725,3442.5,3441.4,0.20587508]
[1718721262868,2.90496,3442.4,3441.4,1.95787508]
[1718721263150,2.90496,3442.4,3441.3,1.1864]
[1718721263151,2.90511,3442.3,3441.3,1.1864]
[1718721263380,0.02578759,3442.4,3441.3,1.1864]
[1718721263381,2.90538,3441.9,3441.3,1.1864]
[1718721263564,2.90556,3441.7,3440.7,1.1864]
[1718721263890,2.90544,3441.9,3440.7,1.1864]
[1718721263891,2.90571,3441.5,3440.7,1.1864]
[1718721264194,0.02570551,3441.6,3440.7,1.1864]
[1718721264489,2.90504,3442.3,3440.7,1.1864]
[1718721264490,2.90597,3441.2,3440.7,1.1864]
[1718721264688,0.02568646,3441.5,3440.7,1.1864]
[1718721264987,2.90554,3441.7,3440.7,1.1864]
[1718721265151,2.90607,3441.1,3440.7,1.1864]
[1718721265352,2.90607,3441.1,3439.7,0.292]
[1718721265353,2.90607,3441.1,3440.0,1.752]
[1718721265554,2.90591,3441.3,3440.0,1.752]
[1718721265555,2.90613,3441.0,3440.0,1.752]
[1718721265792,2.90613,3441.0,3440.1,0.32369889]
[1718721266153,3.196111,3441.7,3440.1,0.32369889]
[1718721266355,9.479,3443.5,3440.1,0.32369889]
[1718721266356,2.90564,3441.6,3440.1,0.32369889]
[1718721266587,2.90596,3441.2,3440.1,0.32369889]
[1718721266787,2.90514,3442.2,3440.1,0.32369889]
[1718721266788,2.90587,3441.4,3440.1,0.32369889]
[1718721267059,2.90597,3441.2,3440.2,0.32620989]
[1718721267668,2.90628,3440.9,3440.2,0.32620989]
[1718721267991,2.90613,3441.0,3440.0,4.752]
[1718721268479,2.90621,3440.9,3440.0,4.752]
[1718721268676,2.90613,3441.0,3440.0,4.752]
[1718721268888,2.90606,3441.1,3440.1,0.59384]
[1718721269317,2.90606,3441.1,3440.2,0.292]
[1718721269461,2.90606,3441.1,3440.2,0.974424]
[1718721269797,2.90617,3441.0,3440.2,0.974424]
[1718721270011,2.90602,3441.2,3440.2,0.292]
[1718721270221,2.90551,3441.8,3440.2,0.292]
[1718721270222,2.90555,3441.7,3440.2,0.292]
[1718721270419,0.555214,3442.1,3440.3,0.292]
[1718721270420,2.90589,3441.3,3440.3,0.292]
[1718721270883,3.486736,3441.6,3440.3,0.292]
[1718721270884,2.9058,3441.4,3440.3,0.292]
[1718721271294,2.90479,3442.6,3440.5,2.044]
[1718721271605,2.90479,3442.6,3440.7,2.044]
[1718721271606,2.90503,3442.3,3440.7,2.044]
[1718721272094,3.2242991,3442.6,3441.2,2.044]
[1718721272307,2.90488,3442.5,3441.3,0.26249191]
[1718721272481,2.90488,3442.5,3441.2,2.044]
[1718721272482,2.90528,3442.1,3441.2,0.292]
[1718721272667,2.90462,3442.8,3441.2,0.292]
[1718721272988,5.74217,3443.1,3441.3,0.0208347]
[1718721272989,2.90486,3442.5,3441.3,0.0208347]
[1718721273290,2.88841493,3443.7,3441.6,1.752]
[1718721273496,2.90438,3443.1,3441.7,0.05808765]
[1718721273698,2.90445,3443.0,3441.8,0.05808596]
[1718721273863,2.9047,3442.7,3441.8,1.752]
[1718721274185,2.90454,3442.9,3441.8,3.0]
[1718721274186,2.90478,3442.6,3441.8,3.0]
[1718721274386,2.90478,3442.6,3441.7,0.97094]
[1718721274387,2.90478,3442.6,3441.7,3.97094]
[1718721274594,2.90521,3442.1,3441.8,3.0]
[1718721274780,2.90521,3442.1,3441.5,1.1864]
[1718721275163,2.90512,3442.2,3441.5,1.1864]
[1718721275363,0.580953,3442.5,3441.5,1.1864]
[1718721275554,2.9037,3443.9,3441.5,1.1864]
[1718721275761,2.90517,3442.2,3441.5,1.1864]
[1718721276004,2.90506,3442.3,3441.5,1.1864]
[1718721276193,2.90506,3442.3,3441.6,0.01906958]
[1718721276400,2.90513,3442.2,3441.5,1.1864]
[1718721276602,2.90504,3442.3,3441.5,1.1864]
[1718721276819,2.90504,3442.3,3441.5,1.36419652]
[1718721277171,2.90514,3442.2,3441.5,1.36419652]
[1718721277370,2.90503,3442.3,3441.5,1.36419652]
[1718721277704,2.90431,3443.2,3441.5,1.36419652]
[1718721277705,2.90449,3443.0,3441.6,0.01582712]
[1718721277859,3.45394,3443.6,3441.6,0.01582712]
[1718721277860,0.379291,3443.3,3441.6,1.77434901]
[1718721278066,2.90436,3443.1,3441.6,4.77434901]
[1718721278263,2.90449,3443.0,3441.6,4.752]
[1718721278602,2.90436,3443.1,3441.6,3.0]
[1718721278603,2.9051,3442.3,3441.6,3.0]
[1718721278762,2.9051,3442.3,3441.5,1.36419652]
[1718721278968,2.90523,3442.1,3441.5,1.36419652]
[1718721279190,2.90512,3442.2,3441.5,1.1864]
[1718721279521,2.90513,3442.2,3441.5,1.1864]
[1718721279714,2.90504,3442.3,3441.5,1.1864]
[1718721280005,2.90495,3442.4,3441.5,1.1864]
[1718721280414,2.90454,3442.9,3441.5,3.11619652]
[1718721280614,2.90466,3442.8,3441.6,3.0]
[1718721280766,0.580917,3442.7,3441.6,3.0]
[1718721280965,2.90486,3442.6,3441.6,3.0]
[1718721281389,2.90409,3443.5,3441.6,3.0]
[1718721281572,2.9045,3443.0,3441.5,1.36419652]
[1718721281780,2.90479,3442.6,3441.5,1.36419652]
[1718721281986,2.90462,3442.8,3441.5,3.11619652]
[1718721282194,0.290462,3442.7,3441.6,3.0]
[1718721283083,3.195172,3442.7,3441.6,3.0]
[1718721283277,3.195172,3442.7,3441.6,4.163868]
[1718721283495,2.90479,3442.6,3441.6,4.163868]
[1718721283860,0.290462,3442.7,3441.6,4.00390645]
[1718721284097,2.90482,3442.6,3441.6,3.0]
[1718721284317,2.90531,3442.0,3441.6,3.0]
[1718721284470,2.90554,3441.7,3441.1,4.164]
[1718721284668,2.90554,3441.7,3441.2,3.0]
[1718721284917,2.90554,3441.7,3441.1,1.164]
[1718721285118,2.90545,3441.8,3441.1,1.164]
[1718721285119,2.90546,3441.8,3441.1,1.164]
[1718721285478,2.90546,3441.8,3440.9,1.1929]
[1718721285479,2.90562,3441.6,3440.9,1.1929]
[1718721286382,2.90594,3441.3,3440.6,3.292]
[1718721286583,2.90594,3441.3,3440.6,0.292]
[1718721286584,2.90588,3441.3,3440.6,0.292]
[1718721287123,2.90558,3441.7,3440.6,0.292]
[1718721287124,2.90598,3441.2,3440.6,0.292]
[1718721287411,2.90587,3441.4,3440.6,0.292]
[1718721287613,2.90621,3441.0,3440.5,0.292]
[1718721287820,2.90528,3442.1,3440.5,0.292]
[1718721287821,2.90579,3441.4,3440.5,0.292]
[1718721288009,2.90597,3441.2,3440.5,0.292]
[1718721288377,2.90615,3441.0,3440.5,0.292]
[1718721288705,2.90606,3441.1,3440.5,0.292]
[1718721289020,2.90628,3440.9,3440.1,0.292]
[1718721289325,2.90639,3440.7,3440.1,0.292]
[1718721290119,2.90639,3440.7,3440.0,0.292]
[1718721290272,2.90662,3440.5,3440.0,0.292]
[1718721290479,2.6929,3441.5,3440.0,0.292]
[1718721290480,2.90674,3440.3,3440.0,0.292]
[1718721290687,2.9068,3440.2,3440.0,0.292]
[1718721290909,2.90611,3441.1,3440.0,0.292]
[1718721290910,2.90662,3440.5,3440.0,0.292]
[1718721291717,2.90689,3440.1,3440.0,0.292]
[1718721291921,2.90657,3440.5,3440.0,0.292]
[1718721292082,2.90688,3440.2,3440.0,0.292]
[1718721292279,2.90656,3440.5,3440.0,0.292]
[1718721292488,3.2259321,3440.9,3440.0,0.292]
[1718721292700,2.90653,3440.6,3440.0,0.292]
[1718721292913,2.90665,3440.4,3440.0,0.292]
[1718721293100,2.90674,3440.3,3440.0,0.292]
[1718721293447,2.90655,3440.6,3440.0,0.292]
[1718721293792,2.90682,3440.2,3440.0,0.292]
[1718721293998,3.51979821,3440.6,3440.0,0.292]
[1718721293999,2.9067,3440.4,3440.0,0.292]
[1718721294195,2.90689,3440.1,3440.0,0.292]
[1718721295493,8.72067,3440.1,3440.0,0.292]
[1718721295692,9.592737,3440.1,3440.0,0.292]
[1718721296394,2.32272,3439.5,3438.8,0.292]
[1718721296622,2.90727,3439.7,3438.8,0.292]
[1718721296827,0.872067,3440.1,3438.8,0.292]
[1718721296828,2.90731,3439.6,3438.9,0.14849]
[1718721297140,2.9074,3439.5,3438.9,0.14849]
[1718721297304,2.90683,3440.2,3438.9,0.14849]
[1718721297492,3.0,3441.5,3438.9,1.90049]
[1718721297493,2.9063,3440.8,3438.9,1.90049]
[1718721297697,5.5205,3441.7,3439.0,0.03094817]
[1718721297698,2.90664,3440.4,3439.0,0.03094817]
[1718721298036,2.90655,3440.5,3438.9,4.90049]
[1718721298236,2.90672,3440.3,3438.9,4.90049]
[1718721298402,2.90681,3440.2,3439.0,2.66707348]
[1718721298606,2.90672,3440.3,3439.1,3.0]
[1718721298816,2.90661,3440.5,3439.2,0.01579342]
[1718721299019,2.90661,3440.5,3439.3,0.56828669]
[1718721299207,2.90656,3440.5,3439.4,0.05813447]
[1718721299524,5.5205,3441.7,3439.4,0.05813447]
[1718721299525,2.90607,3441.1,3439.4,0.05813447]
[1718721299833,2.90667,3440.4,3439.4,0.01819479]
[1718721300038,2.90656,3440.5,3439.4,0.01819479]
[1718721300347,2.90574,3441.5,3439.8,4.511]
[1718721300348,2.90579,3441.5,3439.8,4.511]
[1718721300494,2.9063,3440.8,3439.9,3.4511]
[1718721300698,2.90648,3440.6,3439.9,3.0]
[1718721300947,2.90597,3441.2,3439.4,3.0]
[1718721300948,2.9069,3440.1,3439.4,3.0]
[1718721301120,2.90621,3441.0,3439.4,3.0]
[1718721301121,2.90714,3439.8,3439.4,3.0]
[1718721301305,2.7449,3440.7,3439.0,1.1929]
[1718721301618,2.90672,3440.3,3439.1,0.39519]
[1718721301939,2.90679,3440.3,3439.1,0.39519]
[1718721302125,5.61647,3441.3,3439.3,4.511]
[1718721302434,1.5,3443.0,3440.0,1.752]
[1718721302435,2.90561,3441.7,3440.0,1.752]
[1718721302596,2.90562,3441.6,3440.3,2.759]
[1718721302799,2.90538,3441.9,3440.4,0.05811798]
[1718721303133,2.7369,3442.5,3440.4,0.05811798]
[1718721303134,2.90493,3442.5,3440.9,1.752]
[1718721303429,3.94336853,3442.6,3441.0,0.05810629]
[1718721303430,2.90503,3442.3,3441.0,0.05810629]
[1718721303635,2.90483,3442.6,3441.0,0.05810629]
[1718721303864,0.290483,3442.5,3441.1,0.75691063]
[1718721304065,2.90504,3442.3,3441.2,0.05810634]
[1718721304271,2.90504,3442.3,3441.3,0.0581063]
[1718721304475,2.9047,3442.7,3441.3,2.8171063]
[1718721304632,2.90453,3442.9,3441.4,5.9449]
[1718721304830,0.574189,3443.4,3441.4,5.9449]
[1718721305173,2.90474,3442.7,3441.5,0.90854017]
[1718721305662,2.90511,3442.3,3441.5,0.90854017]
[1718721305849,2.90486,3442.5,3441.5,0.90854017]
[1718721306055,2.90486,3442.5,3441.4,1.1929]
[1718721306366,2.90438,3443.1,3441.4,1.1929]
[1718721306576,2.90462,3442.8,3441.5,0.29449]
[1718721306931,2.90473,3442.7,3441.5,0.29449]
[1718721307242,2.90462,3442.8,3441.5,0.29449]
[1718721307630,2.9047,3442.7,3441.4,1.1929]
[1718721307827,2.90552,3441.8,3441.3,3.0]
[1718721308071,2.90502,3442.4,3441.0,3.0]
[1718721308243,2.90464,3442.8,3441.0,0.41929]
[1718721308244,2.9053,3442.0,3441.0,0.41929]
[1718721308437,2.90537,3441.9,3441.1,0.04056341]
[1718721308776,2.90556,3441.7,3440.8,1.1929]
[1718721308936,2.90559,3441.7,3440.8,1.1929]
[1718721309135,2.90585,3441.4,3440.8,1.1929]
[1718721309434,5.74581,3442.3,3440.3,1.1929]
[1718721309435,2.9055,3441.8,3440.3,1.1929]
[1718721309638,2.90569,3441.6,3440.4,0.32193444]
[1718721309968,2.90597,3441.2,3440.4,0.29449]
[1718721310168,0.865075,3442.2,3440.5,0.02663146]
[1718721310331,2.90469,3442.7,3440.9,4.6582]
[1718721310532,2.90418,3443.4,3441.0,0.02662759]
[1718721310843,2.90418,3443.4,3441.3,2.9449]
[1718721310844,2.90487,3442.5,3441.3,2.9449]
[1718721311168,2.90486,3442.5,3441.3,1.1929]
[1718721311474,2.90438,3443.1,3441.3,1.1929]
[1718721311668,2.90438,3443.1,3441.4,0.32420528]
[1718721311669,2.90476,3442.7,3441.4,0.32420528]
[1718721311877,2.90422,3443.3,3441.5,0.05810158]
[1718721312034,2.9042,3443.3,3441.7,1.752]
[1718721312238,2.643,3443.9,3441.8,0.05809024]
[1718721312239,2.90428,3443.2,3441.8,0.05809024]
[1718721312438,2.90415,3443.4,3441.6,0.62329169]
[1718721312439,2.90468,3442.8,3441.6,0.62329169]
[1718721312776,0.290415,3443.3,3441.7,0.45284452]
[1718721312933,2.90468,3442.8,3441.7,0.3947497]
[1718721313131,2.90437,3443.1,3441.7,0.3947497]
[1718721313349,2.643,3443.9,3441.7,0.3947497]
[1718721313350,2.90395,3443.6,3441.8,0.05803814]
[1718721313675,0.29384188,3443.8,3442.3,1.752]
[1718721313840,0.29384188,3443.8,3442.4,0.05808217]
[1718721314033,0.29384188,3443.8,3442.5,0.47151822]
[1718721314253,0.29384188,3443.8,3442.6,0.05807879]
[1718721314467,2.93125307,3443.7,3442.5,0.47151822]
[1718721314667,2.90345,3444.2,3442.6,2.9376]
[1718721314876,2.8567,3445.0,3442.6,3.45995182]
[1718721314877,2.90314,3444.6,3442.6,3.45995182]
[1718721315116,2.90409,3443.5,3442.7,3.0]
[1718721315251,2.90373,3443.9,3442.6,1.1856]
[1718721315252,2.90384,3443.8,3442.6,1.1856]
[1718721315438,2.90319,3444.5,3442.6,1.47936]
[1718721315439,2.90403,3443.5,3442.6,1.47936]
[1718721315789,2.90413,3443.4,3442.6,1.1856]
[1718721315940,2.90402,3443.5,3442.6,1.1856]
[1718721316384,2.90419,3443.3,3442.6,1.1856]
[1718721316675,2.90419,3443.3,3442.1,3.0]
[1718721316676,2.90435,3443.1,3442.4,3.0]
[1718721316883,0.02737078,3443.0,3442.1,3.0]
[1718721317171,0.02737078,3443.0,3442.0,1.1856]
[1718721317681,2.90419,3443.3,3442.1,0.05808747]
[1718721317860,2.90448,3443.0,3442.1,3.05808747]
[1718721318069,2.93165835,3443.2,3442.1,3.0]
[1718721318386,2.90433,3443.2,3442.2,0.59956875]
[1718721318573,2.90468,3442.8,3442.1,3.0]
[1718721318904,0.02728031,3442.7,3442.0,1.48045855]
[1718721319183,2.90404,3443.5,3442.0,1.1856]
[1718721319366,2.90445,3443.0,3442.0,1.1856]
[1718721319569,2.9047,3442.7,3442.0,1.1856]
[1718721319734,2.90455,3442.9,3442.0,1.1856]
[1718721319935,2.90445,3443.0,3442.0,1.1856]
[1718721320178,2.90469,3442.8,3442.0,1.1856]
[1718721320476,2.90461,3442.8,3442.0,1.1856]
[1718721320636,0.3455787,3443.4,3442.0,1.1856]
[1718721320637,2.90458,3442.9,3442.0,1.1856]
[1718721321274,2.90461,3442.8,3442.0,1.1856]
[1718721321672,2.9048,3442.6,3442.0,1.1856]
[1718721321896,2.90469,3442.7,3442.0,1.1856]
[1718721322087,2.90478,3442.6,3442.0,1.1856]
[1718721322283,2.9047,3442.7,3442.0,1.1856]
[1718721323382,5.5173,3444.0,3442.1,2.90511]
[1718721323383,2.90368,3444.0,3442.1,2.90511]
[1718721323701,0.75,3445.9,3442.2,1.1856]
[1718721323702,2.90386,3443.7,3442.2,1.1856]
[1718721324085,2.90386,3443.7,3442.3,0.0222012]
[1718721324280,2.90386,3443.7,3442.3,1.7742012]
[1718721324481,2.90386,3443.7,3442.4,2.33849912]
[1718721324685,3.194048,3443.9,3442.5,0.05807694]
[1718721324686,2.90396,3443.6,3442.5,0.05807694]
[1718721324986,0.290368,3443.9,3442.4,0.58649912]
[1718721324987,2.90428,3443.2,3442.4,0.58649912]
[1718721325183,2.90412,3443.4,3442.4,0.58649912]
[1718721325184,2.90411,3443.4,3442.4,0.58649912]
[1718721325410,2.90419,3443.3,3442.2,1.1856]
[1718721325617,2.90434,3443.2,3442.2,1.1856]
[1718721325771,2.90418,3443.4,3442.2,1.1856]
[1718721325977,2.90344,3444.2,3442.2,1.1856]
[1718721325978,2.90419,3443.3,3442.2,1.1856]
[1718721326479,2.90465,3442.8,3442.2,1.1856]
[1718721326682,2.9046,3442.9,3442.2,1.1856]
[1718721327276,2.90445,3443.0,3442.2,1.1856]
[1718721327475,2.90463,3442.8,3442.2,1.1856]
[1718721327679,2.90453,3442.9,3442.2,1.1856]
[1718721327914,2.90487,3442.5,3442.2,1.1856]
[1718721328118,2.90487,3442.5,3442.0,0.4954453]
[1718721328278,2.90453,3442.9,3441.7,3.29085302]
[1718721328608,2.90467,3442.8,3441.7,3.0]
[1718721328815,2.90473,3442.7,3441.7,0.41856]
[1718721329015,2.9048,3442.6,3441.7,0.41856]
[1718721329526,2.90441,3443.1,3441.8,0.0365428]
[1718721329527,2.90453,3442.9,3441.8,0.0365428]
[1718721329819,2.90478,3442.6,3441.8,0.70498404]
[1718721330198,2.9047,3442.7,3441.8,0.70498404]
[1718721330411,2.90479,3442.6,3441.9,0.05398879]
[1718721330610,2.90461,3442.8,3441.9,0.61581876]
[1718721330782,2.90452,3442.9,3441.9,0.61581876]
[1718721331513,2.90461,3442.8,3441.9,0.61581876]
[1718721331677,2.90385,3443.7,3442.4,2.758]
[1718721331877,2.90386,3443.7,3442.5,3.29837601]
[1718721332090,2.8971,3444.3,3442.7,2.9376]
[1718721332091,2.90334,3444.3,3442.7,2.9376]
[1718721332311,2.90356,3444.1,3442.8,3.65167892]
[1718721332500,0.576459,3444.5,3442.8,5.3755976]
[1718721332702,2.9036,3444.0,3442.9,0.65611976]
[1718721332922,2.90367,3444.0,3442.7,1.1856]
[1718721333081,2.7311,3444.8,3442.7,1.1856]
[1718721333082,2.9031,3444.6,3442.7,1.1856]
[1718721333278,2.90377,3443.8,3442.7,1.1856]
[1718721333523,2.7311,3444.8,3442.7,1.1856]
[1718721333524,2.9041,3443.5,3442.8,0.44614]
[1718721333822,2.90335,3444.3,3442.7,1.1856]
[1718721334045,2.90426,3443.3,3442.7,1.1856]
[1718721334180,2.90419,3443.3,3442.7,1.1856]
[1718721334517,2.90387,3443.7,3442.2,4.1856]
[1718721334518,2.90393,3443.6,3442.2,4.1856]
[1718721334722,0.290335,3444.2,3442.2,4.1856]
[1718721334723,2.90428,3443.2,3442.3,0.751]
[1718721335127,2.90402,3443.5,3442.3,0.751]
[1718721335297,2.90396,3443.6,3442.4,0.97452684]
[1718721335487,2.90404,3443.5,3442.4,0.97452684]
[1718721335928,2.90421,3443.3,3442.4,0.97452684]
[1718721336096,2.90394,3443.6,3442.5,0.54587953]
[1718721336479,3.194148,3443.8,3442.5,0.54587953]
[1718721336480,0.290368,3443.8,3442.5,0.54587953]
[1718721336686,2.90393,3443.7,3442.5,0.54587953]
[1718721336911,2.90396,3443.6,3442.5,0.54587953]
[1718721337085,2.9024,3445.5,3442.6,0.05268788]
[1718721337288,2.9024,3445.5,3442.5,2.29787953]
[1718721337289,2.90368,3443.9,3442.5,5.29787953]
[1718721337490,2.90304,3444.7,3442.6,0.32724064]
[1718721337491,2.90394,3443.6,3442.6,0.32724064]
[1718721337917,2.90394,3443.6,3442.2,4.48426842]
[1718721338118,2.6428,3443.9,3442.2,4.48426842]
[1718721338318,2.90442,3443.1,3442.2,4.48426842]
[1718721338497,2.90383,3443.8,3442.3,0.72422684]
[1718721338683,2.90353,3444.1,3442.4,4.71502501]
[1718721338895,2.6428,3444.6,3442.6,3.9436]
[1718721338896,2.90337,3444.3,3442.6,3.9436]
[1718721339222,2.6428,3444.6,3442.7,3.0]
[1718721339223,2.90393,3443.7,3442.7,3.0]
[1718721339525,2.90386,3443.7,3442.7,4.2687952]
[1718721339726,2.90357,3444.1,3442.7,4.2687952]
[1718721340025,2.90357,3444.1,3442.1,2.758]
[1718721340026,2.90484,3442.6,3441.9,1.1856]
[1718721340327,2.6351,3444.0,3441.9,1.1856]
[1718721340328,2.9045,3443.0,3441.9,1.57996]
[1718721340529,2.90453,3442.9,3441.9,1.1856]
[1718721340688,2.90432,3443.2,3441.9,1.47936]
[1718721340894,2.90432,3443.2,3441.1,2.758]
[1718721340895,2.90523,3442.1,3441.2,1.1856]
[1718721341117,2.9046,3442.9,3441.3,0.39436]
[1718721341118,2.90519,3442.2,3441.3,0.39436]
[1718721341324,2.90531,3442.0,3441.3,0.39436]
[1718721341552,2.90531,3442.0,3441.2,1.1856]
[1718721341845,2.9051,3442.3,3441.2,1.1856]
[1718721342012,2.90529,3442.0,3441.2,1.1856]
[1718721342839,2.90466,3442.8,3441.2,1.1856]
[1718721342840,2.90568,3441.6,3441.2,1.1856]
[1718721343044,2.90568,3441.6,3440.6,2.758]
[1718721343045,2.90578,3441.5,3440.6,4.0503]
[1718721343333,2.90596,3441.2,3440.7,3.0]
[1718721343533,2.90589,3441.3,3440.6,1.2923]
[1718721343733,2.90597,3441.2,3440.6,1.2923]
[1718721343932,2.90589,3441.3,3440.6,1.2923]
[1718721343933,2.90606,3441.1,3440.6,1.2923]
[1718721344102,2.90596,3441.2,3440.6,1.2923]
[1718721344308,2.90595,3441.3,3440.6,1.2923]
[1718721344514,2.90588,3441.3,3440.6,1.2923]
[1718721344811,2.90579,3441.4,3440.6,1.2923]
[1718721345338,2.8607,3442.0,3440.6,1.2923]
[1718721345339,2.90608,3441.1,3440.6,1.2923]
[1718721345642,2.90608,3441.1,3440.2,3.0]
[1718721345846,2.90608,3441.1,3440.1,4.0503]
[1718721346132,2.90608,3441.1,3440.1,4.34829661]
[1718721346344,2.90576,3441.5,3440.2,0.43482966]
[1718721346526,2.90612,3441.1,3440.1,1.2923]
[1718721346909,2.90586,3441.4,3440.1,1.2923]
[1718721347213,2.8607,3442.0,3440.1,1.2923]
[1718721347214,2.90506,3442.3,3440.2,7.44650275]
[1718721347416,2.7688,3442.6,3440.2,7.44650275]
[1718721347417,2.90546,3441.8,3440.5,1.752]
[1718721347750,2.90562,3441.6,3440.3,3.87388028]
[1718721347949,2.90596,3441.2,3440.3,3.0]
[1718721348461,2.90507,3442.3,3440.3,3.0]
[1718721348462,2.90621,3440.9,3440.3,3.0]
[1718721348616,2.90621,3440.9,3440.1,1.2923]
[1718721349232,2.90605,3441.1,3440.1,1.2923]
[1718721349520,2.90613,3441.0,3440.2,0.63404349]
[1718721350022,2.90605,3441.1,3440.2,0.63404349]
[1718721350367,2.90597,3441.2,3440.2,0.63404349]
[1718721350551,2.90612,3441.1,3440.3,0.49263435]
[1718721350720,2.90612,3441.1,3440.2,0.63404349]
[1718721350721,2.90618,3441.0,3440.2,0.63404349]
[1718721350921,2.90621,3440.9,3440.1,1.2923]
[1718721351228,2.90639,3440.7,3440.1,1.2923]
[1718721351818,2.90561,3441.7,3440.1,3.0443]
[1718721351819,2.90554,3441.7,3440.1,3.0443]
[1718721352026,2.8625,3442.4,3440.2,5.105126]
[1718721352319,2.90556,3441.7,3440.4,1.752]
[1718721352521,2.90529,3442.0,3440.5,0.75632021]
[1718721352720,2.90555,3441.7,3440.5,0.75632021]
[1718721352964,2.90461,3442.8,3441.2,2.758]
[1718721352965,2.90493,3442.5,3441.2,2.758]
[1718721353185,2.90445,3443.0,3441.4,3.0443]
[1718721353457,2.90436,3443.1,3441.7,2.758]
[1718721353655,2.90481,3442.6,3441.8,3.05809409]
[1718721353864,2.90481,3442.6,3441.8,3.0]
[1718721354031,2.90466,3442.8,3441.9,0.751]